bitfinex-derivatives/quotes_BTCF0:USTF0_20251002
["timestamp","ask_amount","ask_price","bid_price","bid_amount"]
[1759412196714,1.27687673,119430.0,119420.0,0.03531]
[1759412197020,1.27687673,119430.0,119410.0,0.37341]
[1759412197021,0.1056465,119420.0,119410.0,0.39563]
[1759412197220,0.8754465,119420.0,119410.0,0.39563]
[1759412197621,1.28188373,119420.0,119410.0,0.39563]
[1759412197920,0.8754465,119420.0,119410.0,0.39563]
[1759412198415,0.8764465,119420.0,119410.0,0.39563]
[1759412198625,0.1066465,119420.0,119410.0,0.39563]
[1759412198821,0.8753665,119420.0,119410.0,0.4793335]
[1759412199220,0.1056465,119420.0,119410.0,0.4793335]
[1759412199416,0.8762465,119420.0,119410.0,0.4793335]
[1759412200122,0.8762465,119420.0,119410.0,0.39563]
[1759412200425,1.28268373,119420.0,119410.0,0.39563]
[1759412200633,1.71455843,119420.0,119410.0,0.3608]
[1759412201131,1.69301373,119420.0,119410.0,0.3608]
[1759412201328,1.71455886,119420.0,119410.0,0.3608]
[1759412201524,0.1056535,119410.0,119400.0,0.39563]
[1759412201726,0.51209073,119410.0,119400.0,0.03483]
[1759412202021,0.51209073,119410.0,119400.0,0.01261]
[1759412202632,1.28141073,119410.0,119400.0,0.4793405]
[1759412202833,0.1056535,119410.0,119400.0,0.4793405]
[1759412203028,0.8529835,119410.0,119400.0,0.4813405]
[1759412203227,0.1056525,119420.0,119410.0,0.1189535]
[1759412203432,0.89637167,119420.0,119410.0,0.4797535]
[1759412203731,0.89633167,119420.0,119410.0,0.4797535]
[1759412203938,0.8748925,119420.0,119410.0,0.4797535]
[1759412204633,1.28232973,119420.0,119410.0,0.39605]
[1759412205529,1.28132973,119420.0,119410.0,0.4797535]
[1759412205730,1.28132973,119420.0,119410.0,0.39605]
[1759412205731,1.28232973,119420.0,119410.0,0.39605]
[1759412205933,1.28232973,119420.0,119410.0,0.03525]
[1759412206127,0.1056535,119410.0,119400.0,0.39563]
[1759412206332,0.49848379,119410.0,119400.0,0.39563]
[1759412206831,0.49848379,119410.0,119400.0,0.03483]
[1759412207036,0.49848379,119410.0,119400.0,0.39563]
[1759412207736,0.49848379,119410.0,119400.0,0.39763]
[1759412208934,0.49848379,119410.0,119400.0,0.39563]
[1759412208935,0.49948379,119410.0,119400.0,0.39563]
[1759412209137,0.09404656,119410.0,119400.0,0.39563]
[1759412209335,0.09404656,119410.0,119400.0,0.4793405]
[1759412209539,0.86316656,119410.0,119400.0,0.39563]
[1759412209836,0.1053405,119400.0,119390.0,0.37341]
[1759412210037,0.1053475,119390.0,119380.0,0.39525]
[1759412210336,0.8741875,119390.0,119380.0,0.4789745]
[1759412211431,0.1053475,119390.0,119380.0,0.4789745]
[1759412211735,0.8740275,119390.0,119380.0,0.4789745]
[1759412211937,0.8740275,119390.0,119380.0,0.4839745]
[1759412212137,0.8740275,119390.0,119380.0,0.4859745]
[1759412212528,0.1053475,119390.0,119380.0,0.4859745]
[1759412212724,0.8740275,119390.0,119380.0,0.4859745]
[1759412213737,0.8740275,119390.0,119380.0,0.4789745]
[1759412213925,0.8737875,119390.0,119380.0,0.4809745]
[1759412214126,0.83733379,119410.0,119390.0,0.0837144]
[1759412214330,0.02163,119400.0,119390.0,0.4799044]
[1759412214531,0.79003,119400.0,119390.0,0.4799044]
[1759412214837,0.1053321,119420.0,119410.0,0.03539]
[1759412215038,0.8736921,119420.0,119410.0,0.03539]
[1759412216036,1.28012933,119420.0,119410.0,0.03539]
[1759412216941,1.28712933,119420.0,119410.0,0.03539]
[1759412217237,1.28012933,119420.0,119410.0,0.03539]
[1759412217435,1.28712933,119420.0,119410.0,0.03539]
[1759412217635,1.28712933,119420.0,119410.0,0.1190935]
[1759412218034,0.1123321,119420.0,119410.0,0.1190935]
[1759412218346,0.7758,119420.0,119410.0,1.28633073]
[1759412218639,0.762194,119420.0,119410.0,1.34650282]
[1759412219539,0.8458905,119420.0,119410.0,0.94006559]
[1759412220035,0.8458905,119420.0,119410.0,0.94206559]
[1759412220436,0.8675205,119420.0,119410.0,0.94006559]
[1759412220741,0.8675205,119420.0,119410.0,0.94206559]
[1759412221146,0.55733329,119440.0,119420.0,0.1190831]
[1759412221147,0.1053224,119430.0,119420.0,0.1190831]
[1759412221344,0.8744024,119430.0,119420.0,0.4798831]
[1759412221835,0.02163,119430.0,119420.0,0.4798831]
[1759412222040,0.1053086,119450.0,119440.0,0.03539]
[1759412222244,0.8741886,119450.0,119440.0,0.39619]
[1759412222634,1.28062583,119450.0,119440.0,0.39619]
[1759412222834,1.28062583,119450.0,119440.0,0.03539]
[1759412223336,1.28062583,119450.0,119440.0,0.01397]
[1759412223533,0.1053125,119440.0,119430.0,0.01397]
[1759412223834,0.1073195,119430.0,119420.0,0.39619]
[1759412224043,1.28259673,119430.0,119420.0,0.39619]
[1759412224235,1.28059673,119430.0,119420.0,0.39619]
[1759412225037,1.28159673,119430.0,119420.0,0.39619]
[1759412225441,0.1053195,119430.0,119420.0,0.39619]
[1759412225639,0.8629195,119430.0,119420.0,0.4798867]
[1759412226236,0.8629195,119430.0,119420.0,0.39619]
[1759412226438,1.26935673,119430.0,119420.0,0.03539]
[1759412227544,0.8629195,119430.0,119420.0,0.39619]
[1759412227740,1.26935673,119430.0,119420.0,0.39619]
[1759412228739,0.1053267,119420.0,119410.0,0.45636209]
[1759412228947,0.49815815,119420.0,119400.0,0.51865239]
[1759412229143,1.28029093,119410.0,119400.0,0.54007239]
[1759412229338,0.8738537,119410.0,119400.0,0.54007239]
[1759412230546,0.02163,119420.0,119410.0,0.1190937]
[1759412230851,0.79007,119420.0,119410.0,0.54006579]
[1759412231150,0.8737667,119420.0,119410.0,0.94650302]
[1759412231351,0.1053234,119430.0,119420.0,0.1190867]
[1759412231550,0.8738034,119430.0,119420.0,0.4798867]
[1759412232449,1.28024063,119430.0,119420.0,0.4798867]
[1759412232838,0.0836967,119420.0,119410.0,0.43694209]
[1759412233039,0.1053267,119420.0,119410.0,0.45836209]
[1759412233345,0.0836967,119420.0,119410.0,0.54206579]
[1759412233544,0.8736067,119420.0,119410.0,0.54206579]
[1759412233738,0.8736067,119420.0,119410.0,0.45636209]
[1759412233941,1.28004393,119420.0,119410.0,0.45836209]
[1759412234549,1.28004393,119420.0,119410.0,0.43694209]
[1759412234750,1.28004393,119420.0,119410.0,0.37677]
[1759412234952,1.28004393,119420.0,119410.0,0.01397]
[1759412235152,1.28004393,119420.0,119410.0,0.01597]
[1759412235351,0.1053267,119420.0,119410.0,0.4818937]
[1759412235545,0.8734467,119420.0,119410.0,0.4818937]
[1759412236048,0.8734467,119420.0,119410.0,0.01597]
[1759412236049,1.27988393,119420.0,119410.0,0.01597]
[1759412236246,2.04068393,119420.0,119410.0,0.002]
[1759412236442,0.0837107,119400.0,119390.0,0.07414209]
[1759412236648,0.1053477,119390.0,119380.0,0.45636209]
[1759412236848,0.51178493,119390.0,119380.0,0.45636209]
[1759412237047,0.52044493,119390.0,119380.0,0.3608]
[1759412237256,0.1053547,119380.0,119370.0,0.45636209]
[1759412237556,1.28023193,119380.0,119370.0,0.45636209]
[1759412237758,0.8737947,119380.0,119370.0,0.54009379]
[1759412238248,0.79003,119380.0,119370.0,0.54009379]
[1759412238444,0.0837181,119390.0,119380.0,0.0837247]
[1759412238649,0.8742681,119390.0,119380.0,0.4811447]
[1759412238952,0.8742681,119390.0,119380.0,0.39742]
[1759412239347,0.1059481,119390.0,119380.0,0.4811447]
[1759412239749,0.79051,119390.0,119380.0,0.4811447]
[1759412239949,0.8762277,119390.0,119380.0,0.4811447]
[1759412240249,0.79251,119390.0,119380.0,0.4811447]
[1759412240447,0.8762277,119390.0,119380.0,0.4811447]
[1759412240652,0.8762277,119390.0,119380.0,0.39742]
[1759412240952,0.8762277,119390.0,119380.0,0.4811447]
[1759412241155,1.28266493,119390.0,119380.0,0.4811447]
[1759412241354,1.28266493,119390.0,119380.0,0.3608]
[1759412241551,1.68266493,119390.0,119380.0,0.3608]
[1759412241752,0.0837317,119370.0,119360.0,0.37477]
[1759412242058,0.1059687,119360.0,119350.0,0.45768209]
[1759412242257,0.51240593,119360.0,119350.0,0.37477]
[1759412242554,0.1059687,119360.0,119350.0,0.4812557]
[1759412243353,0.1069848,119370.0,119360.0,0.0837387]
[1759412243560,0.8755848,119370.0,119360.0,0.4799687]
[1759412243860,0.8755417,119370.0,119360.0,0.4799687]
[1759412244062,0.8755417,119370.0,119350.0,0.86495293]
[1759412244063,0.1069887,119360.0,119350.0,0.4585118]
[1759412244263,0.1069887,119360.0,119350.0,0.4813418]
[1759412244458,0.8757087,119360.0,119350.0,0.4813418]
[1759412244656,0.8757087,119360.0,119350.0,0.4883418]
[1759412244966,0.8757087,119360.0,119350.0,0.4813457]
[1759412245263,0.8757087,119360.0,119350.0,0.4883457]
[1759412248567,0.8755487,119360.0,119350.0,0.4883457]
[1759412249172,0.1069857,119370.0,119360.0,0.1191664]
[1759412249364,0.8752657,119370.0,119360.0,0.4799664]
[1759412249670,0.02325,119370.0,119360.0,0.4799664]
[1759412249863,0.1069747,119380.0,119370.0,0.03543]
[1759412250167,0.1069747,119380.0,119370.0,0.1191617]
[1759412250367,0.8753347,119380.0,119370.0,0.1191617]
[1759412251861,0.8753347,119380.0,119370.0,0.1201617]
[1759412253060,0.8751747,119380.0,119370.0,0.1201617]
[1759412253263,0.8751747,119380.0,119370.0,0.4809617]
[1759412254670,0.1069747,119380.0,119370.0,0.4809617]
[1759412254871,0.8750547,119380.0,119370.0,0.4809617]
[1759412255372,0.1069747,119380.0,119370.0,0.4809617]
[1759412255570,0.02325,119380.0,119370.0,0.4809617]
[1759412255773,0.8747746,119380.0,119370.0,0.4809617]
[1759412256864,0.52467723,119430.0,119380.0,0.119153]
[1759412256865,0.00866,119420.0,119380.0,0.119153]
[1759412257063,0.1069466,119420.0,119410.0,0.4799336]
[1759412257472,2.57129579,119440.0,119420.0,0.1191238]
[1759412257473,0.8752196,119430.0,119420.0,0.1191238]
[1759412257668,0.79153,119430.0,119420.0,0.4799238]
[1759412257870,0.1069288,119450.0,119440.0,0.03543]
[1759412258166,0.8752488,119450.0,119440.0,0.75703]
[1759412258368,0.8752488,119450.0,119440.0,0.39623]
[1759412259164,0.8802488,119450.0,119440.0,0.39623]
[1759412259372,0.8852488,119450.0,119440.0,0.03543]
[1759412259575,0.8852488,119450.0,119440.0,0.39623]
[1759412260075,0.8852488,119450.0,119440.0,0.4799125]
[1759412260271,0.8852488,119450.0,119440.0,0.39623]
[1759412260867,0.8852488,119450.0,119440.0,0.4799125]
[1759412261071,0.885245,119450.0,119440.0,0.4799125]
[1759412261473,0.885245,119450.0,119440.0,0.39623]
[1759412261770,0.80157,119450.0,119440.0,0.4799126]
[1759412261972,0.0936756,119450.0,119440.0,0.4799126]
[1759412262272,0.1169256,119450.0,119440.0,0.39623]
[1759412262776,0.1169256,119450.0,119440.0,0.4799126]
[1759412264077,0.03325,119450.0,119440.0,0.4799126]
[1759412264463,0.01,119450.0,119440.0,0.8799126]
[1759412264683,0.0936756,119450.0,119440.0,0.8799126]
[1759412264978,0.1169256,119450.0,119440.0,0.79623]
[1759412265566,0.1169256,119450.0,119440.0,0.8799126]
[1759412265772,0.03325,119450.0,119440.0,0.8799126]
[1759412266570,0.01,119450.0,119440.0,0.8799126]
[1759412267082,0.01,119450.0,119440.0,1.23364393]
[1759412267271,0.0936757,119450.0,119440.0,0.8799126]
[1759412267470,0.01,119450.0,119440.0,0.8799126]
[1759412268087,0.01,119450.0,119440.0,1.23364393]
[1759412268371,4e-05,119460.0,119450.0,0.03504772]
[1759412268372,0.0837087,119460.0,119450.0,0.03504772]
[1759412268577,0.1058387,119460.0,119450.0,0.39584772]
[1759412268774,0.1058387,119460.0,119450.0,0.47952342]
[1759412269277,0.02217,119460.0,119450.0,0.47952342]
[1759412269673,0.1058387,119460.0,119450.0,0.39584772]
[1759412270072,0.1058387,119460.0,119450.0,0.47952342]
[1759412270573,0.00104,119460.0,119450.0,0.47952342]
[1759412270978,0.0847087,119460.0,119450.0,0.47952342]
[1759412271183,0.0837087,119460.0,119450.0,0.47952342]
[1759412271478,0.0847087,119460.0,119450.0,0.47952342]
[1759412271977,0.1068387,119460.0,119450.0,0.47952342]
[1759412272676,0.0847087,119460.0,119450.0,0.47952342]
[1759412273078,0.00104,119460.0,119450.0,0.47952342]
[1759412273278,0.0847087,119460.0,119450.0,0.47952342]
[1759412273772,0.1068387,119460.0,119450.0,0.47952342]
[1759412274175,0.02317,119460.0,119450.0,0.47952342]
[1759412275071,0.1068387,119460.0,119450.0,0.47952342]
[1759412275272,0.00104,119460.0,119450.0,0.47952342]
[1759412275474,0.00104,119460.0,119450.0,0.83325475]
[1759412275876,0.00104,119460.0,119450.0,0.47952342]
[1759412276077,0.00104,119460.0,119450.0,0.83325475]
[1759412276273,0.00104,119460.0,119450.0,1.23325475]
[1759412277370,0.00104,119460.0,119450.0,0.47952342]
[1759412277574,0.02317,119460.0,119450.0,0.47952342]
[1759412277775,0.1068386,119460.0,119450.0,0.47952342]
[1759412278176,0.02317,119460.0,119450.0,0.47952342]
[1759412278379,0.00104,119460.0,119450.0,0.47952342]
[1759412279677,0.02317,119460.0,119450.0,0.47952342]
[1759412279979,0.00104,119460.0,119450.0,0.47952342]
[1759412280381,0.1068386,119460.0,119450.0,0.47952342]
[1759412281078,0.00104,119460.0,119450.0,0.47952342]
[1759412281778,0.0847086,119460.0,119450.0,0.47952342]
[1759412282084,0.1068386,119460.0,119450.0,0.47952342]
[1759412282478,0.02317,119460.0,119450.0,0.47952342]
[1759412282879,0.1068386,119460.0,119450.0,0.47952342]
[1759412284987,0.86056993,119460.0,119450.0,0.39584772]
[1759412285180,0.86056993,119460.0,119450.0,0.47952332]
[1759412285781,0.42317,119460.0,119450.0,0.47952332]
[1759412285984,0.00104,119460.0,119450.0,0.47952332]
[1759412286183,0.0847086,119460.0,119450.0,0.47952332]
[1759412286998,0.1068386,119460.0,119450.0,0.47952332]
[1759412289102,0.1068386,119460.0,119450.0,0.39584772]
[1759412289295,0.1068386,119460.0,119450.0,0.47952342]
[1759412289997,0.00104,119460.0,119450.0,0.47952342]
[1759412290197,0.00104,119460.0,119450.0,0.80455203]
[1759412290601,0.00104,119460.0,119450.0,0.47952342]
[1759412290899,0.00104,119460.0,119450.0,0.80455203]
[1759412291096,0.8494625,119470.0,119460.0,0.1183587]
[1759412291292,0.10498817,119470.0,119460.0,0.4791587]
[1759412291489,0.10498817,119470.0,119460.0,0.80418731]
[1759412291490,0.02132567,119470.0,119460.0,0.80418731]
[1759412291904,0.0836615,119470.0,119460.0,0.80418731]
[1759412292296,0.10492924,119470.0,119460.0,0.80418731]
[1759412292603,0.10492939,119470.0,119460.0,0.80418731]
[1759412292902,0.12705935,119470.0,119460.0,0.39549]
[1759412293092,0.45208796,119470.0,119460.0,0.4791585]
[1759412293295,0.12805935,119470.0,119460.0,0.4791585]
[1759412293495,0.10692935,119470.0,119460.0,0.4791585]
[1759412293699,0.43195796,119470.0,119460.0,0.4791585]
[1759412293902,0.02326785,119470.0,119460.0,0.4791585]
[1759412294096,0.10692945,119470.0,119460.0,0.80418711]
[1759412295695,0.02326785,119470.0,119460.0,0.80418711]
[1759412295890,0.1058223,119490.0,119480.0,0.083654]
[1759412296095,0.12687865,119490.0,119480.0,1.16497261]
[1759412296294,0.45190726,119490.0,119480.0,0.75629]
[1759412296600,0.85190726,119490.0,119480.0,0.39549]
[1759412296793,0.9187313,119490.0,119480.0,0.39549]
[1759412297005,0.9187313,119490.0,119480.0,0.03469]
[1759412297205,0.9197313,119490.0,119480.0,0.03469]
[1759412297499,0.92805327,119490.0,119480.0,0.03469]
[1759412297700,0.60202466,119490.0,119480.0,0.03469]
[1759412298005,0.92805327,119490.0,119480.0,0.03469]
[1759412299007,0.92805327,119490.0,119480.0,0.39549]
[1759412299501,0.92805327,119490.0,119480.0,0.03469]
[1759412299904,1.25308188,119490.0,119480.0,0.39549]
[1759412300201,0.1058244,119480.0,119470.0,0.01325]
[1759412300401,1.21754936,119480.0,119470.0,0.03656]
[1759412300602,0.1058315,119470.0,119460.0,0.39736]
[1759412300799,0.43086011,119470.0,119460.0,0.39736]
[1759412301199,0.45190876,119470.0,119460.0,0.39736]
[1759412302106,0.45190876,119470.0,119460.0,0.4810285]
[1759412302502,1.21754876,119470.0,119460.0,0.4810285]
[1759412302908,0.89252015,119470.0,119460.0,0.4810285]
[1759412303100,1.21754876,119470.0,119460.0,0.40136]
[1759412303402,1.61754876,119470.0,119460.0,0.37405]
[1759412303704,1.61754876,119470.0,119460.0,0.37805]
[1759412304105,1.61754876,119470.0,119460.0,0.01725]
[1759412304297,0.85190876,119470.0,119460.0,0.4008]
[1759412304503,1.61750876,119470.0,119460.0,0.4008]
[1759412305302,1.61750876,119470.0,119460.0,0.04]
[1759412305502,1.29248015,119470.0,119460.0,0.04]
[1759412305700,1.61750876,119470.0,119460.0,0.4008]
[1759412305900,1.61746876,119470.0,119460.0,0.4008]
[1759412306101,1.61746876,119470.0,119460.0,0.004]
[1759412306102,1.98692876,119470.0,119460.0,0.004]
[1759412306996,2.00945589,119470.0,119460.0,0.004]
[1759412307201,1.67552728,119470.0,119460.0,0.04032]
[1759412307398,1.97802876,119470.0,119460.0,0.04032]
[1759412307602,1.98668876,119470.0,119460.0,0.004]
[1759412308001,1.66166015,119470.0,119460.0,0.004]
[1759412308202,1.54655283,119470.0,119460.0,0.004]
[1759412308405,2.3117861,119470.0,119460.0,0.004]
[1759412311109,0.89633342,119470.0,119460.0,0.004]
[1759412311313,2.3115461,119470.0,119460.0,0.004]
[1759412311904,1.5465461,119470.0,119460.0,0.004]
[1759412312211,2.3114661,119470.0,119460.0,0.04032]
[1759412312807,1.65259342,119470.0,119460.0,0.04032]
[1759412313007,1.21689976,119470.0,119460.0,0.04032]
[1759412313209,0.1058315,119470.0,119460.0,0.4847885]
[1759412313410,1.18221611,119470.0,119460.0,0.40112]
[1759412315404,0.85710977,119470.0,119460.0,0.40112]
[1759412315713,1.18221611,119470.0,119460.0,0.40112]
[1759412318112,1.50732245,119470.0,119460.0,0.40112]
[1759412318306,1.50732245,119470.0,119460.0,0.04032]
[1759412319516,1.50708245,119470.0,119460.0,0.40112]
[1759412320318,1.50708245,119470.0,119460.0,0.04032]
[1759412321124,1.50708245,119470.0,119460.0,0.004]
[1759412321512,1.52427478,119470.0,119460.0,0.004]
[1759412321821,1.52427478,119470.0,119450.0,0.01392772]
[1759412321822,0.1152384,119460.0,119450.0,0.00035772]
[1759412322023,1.45135742,119460.0,119450.0,0.00035772]
[1759412322223,1.52625108,119460.0,119450.0,0.00035772]
[1759412323316,1.52625108,119460.0,119450.0,0.00535772]
[1759412323621,1.52625108,119460.0,119450.0,0.00735772]
[1759412323817,2.29089108,119460.0,119450.0,0.00735772]
[1759412324124,2.61599742,119460.0,119450.0,0.00735772]
[1759412324823,0.1069294,119430.0,119420.0,0.21725508]
[1759412325020,0.40838466,119430.0,119420.0,0.2019286]
[1759412325221,1.498131,119430.0,119420.0,0.45724333]
[1759412325420,1.498131,119430.0,119420.0,0.39712]
[1759412326024,0.733491,119430.0,119420.0,0.3608]
[1759412326224,1.43809268,119430.0,119420.0,0.40912]
[1759412326425,1.89092383,119430.0,119420.0,0.012]
[1759412326619,0.0837032,119410.0,119400.0,0.43449333]
[1759412326824,1.26319662,119410.0,119400.0,0.09644333]
[1759412327023,1.58830296,119410.0,119400.0,0.03632]
[1759412327225,0.1069502,119400.0,119390.0,0.45734439]
[1759412327422,0.75716288,119400.0,119390.0,0.45734439]
[1759412327618,1.52184288,119400.0,119390.0,0.48093856]
[1759412327922,1.52184288,119400.0,119390.0,0.54106189]
[1759412328329,1.52184288,119400.0,119390.0,0.48093856]
[1759412328921,0.8716702,119400.0,119390.0,0.48093856]
[1759412329120,1.19677654,119400.0,119390.0,0.49093856]
[1759412329320,1.19677654,119400.0,119390.0,0.50393856]
[1759412330026,1.52188288,119400.0,119390.0,0.48593856]
[1759412330225,1.85564922,119400.0,119390.0,0.00510106]
[1759412330621,1.53058288,119400.0,119390.0,0.00510106]
[1759412330817,1.09092922,119400.0,119390.0,0.00510106]
[1759412331015,2.61648922,119400.0,119390.0,0.00510106]
[1759412331221,1.85172922,119400.0,119390.0,0.00510106]
[1759412331426,4.31452922,119400.0,119390.0,0.00510106]
[1759412331819,1.85172922,119400.0,119390.0,0.00510106]
[1759412332021,4.31460922,119400.0,119390.0,0.00510106]
[1759412332218,1.85172922,119400.0,119390.0,0.00510106]
[1759412332423,4.31460922,119400.0,119390.0,0.00510106]
[1759412332731,1.85172922,119400.0,119390.0,0.00510106]
[1759412332934,3.98958288,119400.0,119390.0,0.00510106]
[1759412333523,3.98962288,119400.0,119390.0,0.00510106]
[1759412333732,2.29146288,119400.0,119390.0,0.00510106]
[1759412333929,1.52662288,119400.0,119390.0,0.00510106]
[1759412334233,2.28280288,119400.0,119390.0,0.03904106]
[1759412334637,0.8718302,119400.0,119390.0,0.03904106]
[1759412334835,0.75716288,119400.0,119390.0,0.03904106]
[1759412335039,1.52204288,119400.0,119390.0,0.03904106]
[1759412335535,0.75716288,119400.0,119390.0,0.03904106]
[1759412335735,0.67345268,119400.0,119390.0,0.48355866]
[1759412335932,1.09002634,119400.0,119390.0,1.208665]
[1759412336131,0.43170004,119410.0,119400.0,0.0966235]
[1759412336333,1.11291634,119410.0,119400.0,0.80354984]
[1759412336736,0.02289,119420.0,119410.0,0.1176435]
[1759412337041,0.1065795,119430.0,119420.0,0.1176365]
[1759412337241,0.7550195,119430.0,119420.0,0.4784365]
[1759412337533,0.02289,119430.0,119420.0,0.4784365]
[1759412337739,0.35652536,119440.0,119430.0,0.1176295]
[1759412337940,0.44020786,119440.0,119430.0,0.4784295]
[1759412338132,1.5302342,119440.0,119430.0,0.4784295]
[1759412339249,1.5302342,119440.0,119430.0,0.39474]
[1759412339544,1.5302342,119440.0,119430.0,0.37772]
[1759412339854,1.85534054,119440.0,119430.0,0.008]
[1759412340241,1.24082152,119440.0,119430.0,0.008]
[1759412340436,1.64741644,119440.0,119430.0,0.008]
[1759412340637,2.05401136,119440.0,119430.0,0.008]
[1759412340836,2.05401136,119440.0,119430.0,0.02092]
[1759412341042,2.12216857,119440.0,119430.0,0.02092]
[1759412341233,1.76136857,119440.0,119430.0,0.0976095]
[1759412341443,1.35473365,119440.0,119430.0,0.1186295]
[1759412341639,1.35473365,119440.0,119430.0,0.03394]
[1759412341838,1.35473365,119440.0,119430.0,0.01392]
[1759412342534,1.35473365,119440.0,119430.0,0.03494]
[1759412343139,1.35473365,119440.0,119430.0,0.001]
[1759412343340,1.71553365,119440.0,119430.0,0.001]
[1759412343540,2.12212857,119440.0,119430.0,0.001]
[1759412344141,0.1065865,119420.0,119410.0,0.37372]
[1759412344442,1.27806142,119420.0,119410.0,0.478441]
[1759412344846,0.42948492,119420.0,119410.0,0.478441]
[1759412345346,1.19436492,119420.0,119410.0,0.485441]
[1759412345543,1.19436492,119420.0,119410.0,0.492441]
[1759412345742,0.02289,119420.0,119410.0,0.892441]
[1759412346038,0.42948492,119430.0,119420.0,0.117635]
[1759412346233,0.42948492,119430.0,119420.0,0.478435]
[1759412346433,1.27805292,119430.0,119420.0,0.478435]
[1759412347043,1.27805292,119430.0,119420.0,0.37372]
[1759412347242,0.51317292,119430.0,119410.0,0.4714162]
[1759412347543,1.19436492,119420.0,119410.0,0.4924362]
[1759412348144,1.19436492,119420.0,119410.0,0.4784362]
[1759412348642,0.42948492,119420.0,119410.0,0.4784362]
[1759412348842,0.78777,119420.0,119410.0,0.4784362]
[1759412349039,0.02289,119420.0,119410.0,0.4854362]
[1759412349244,0.02289,119430.0,119420.0,0.1176286]
[1759412349446,1.19436492,119430.0,119420.0,0.4784286]
[1759412349638,1.27805292,119430.0,119420.0,0.4784286]
[1759412350145,0.51317292,119430.0,119420.0,0.4784286]
[1759412350347,1.19432492,119430.0,119420.0,0.4784286]
[1759412350542,0.02289,119430.0,119420.0,0.4784286]
[1759412350747,1.19432492,119430.0,119420.0,0.4784286]
[1759412351647,1.19432492,119430.0,119420.0,0.4824286]
[1759412351836,1.27801292,119430.0,119420.0,0.4864286]
[1759412352040,0.58985675,119440.0,119430.0,0.1176279]
[1759412352247,1.35469675,119440.0,119430.0,0.4784279]
[1759412352542,0.09957623,119440.0,119430.0,0.4784279]
[1759412352748,1.25156582,119440.0,119430.0,0.4784279]
[1759412352951,1.16788492,119440.0,119430.0,0.4784279]
[1759412353249,1.19432492,119440.0,119430.0,0.4784279]
[1759412353449,1.19432492,119440.0,119430.0,0.4794279]
[1759412353644,0.0836783,119450.0,119440.0,0.0836809]
[1759412353645,0.1065683,119450.0,119440.0,0.0836809]
[1759412353850,1.27800322,119450.0,119440.0,0.4784209]
[1759412354050,1.28624725,119450.0,119440.0,0.03394]
[1759412354349,0.1065709,119440.0,119430.0,0.4794233]
[1759412354550,0.42948492,119440.0,119430.0,0.4784233]
[1759412354749,0.42948492,119440.0,119430.0,0.4794233]
[1759412354750,0.41588131,119440.0,119430.0,0.4794233]
[1759412355048,0.49956221,119440.0,119430.0,0.4784233]
[1759412355245,0.49956221,119440.0,119430.0,0.1176233]
[1759412355449,0.49956221,119440.0,119430.0,0.0966033]
[1759412356150,0.49956221,119440.0,119430.0,0.0986033]
[1759412356356,0.86036221,119440.0,119430.0,0.01492]
[1759412356740,0.86036221,119440.0,119430.0,0.0986109]
[1759412356940,0.86036221,119440.0,119430.0,0.01492]
[1759412357440,0.45376729,119440.0,119430.0,0.01492]
[1759412357644,0.49956221,119440.0,119430.0,0.0986109]
[1759412357846,0.86036221,119440.0,119430.0,0.0986109]
[1759412358153,0.86236221,119440.0,119430.0,0.01392]
[1759412358452,0.86236221,119440.0,119430.0,0.001]
[1759412358645,0.45576729,119440.0,119430.0,0.1213209]
[1759412358846,0.49956221,119440.0,119430.0,0.1203209]
[1759412359047,0.50156221,119440.0,119430.0,0.1203209]
[1759412359751,0.85977029,119440.0,119430.0,0.1203209]
[1759412359951,1.26636521,119440.0,119430.0,0.1203209]
[1759412361654,1.18268131,119440.0,119430.0,0.4811209]
[1759412361952,0.7668,119440.0,119430.0,0.8811209]
[1759412364056,0.77502,119440.0,119430.0,0.8811209]
[1759412364260,0.77502,119440.0,119430.0,0.8851209]
[1759412364454,1.18161492,119440.0,119430.0,0.8891209]
[1759412364758,0.50049882,119440.0,119430.0,0.8891209]
[1759412364959,1.26525882,119440.0,119430.0,0.8891209]
[1759412365146,1.25165494,119440.0,119430.0,0.1283209]
[1759412365351,1.25503882,119440.0,119430.0,0.1283209]
[1759412365554,2.02243374,119440.0,119430.0,0.008]
[1759412366259,2.42243374,119440.0,119430.0,0.008]
[1759412367060,2.44332551,119440.0,119430.0,0.008]
[1759412368461,1.98356911,119440.0,119430.0,0.008]
[1759412368859,0.0836979,119420.0,119410.0,0.01292]
[1759412369059,1.56269134,119420.0,119410.0,0.01292]
[1759412369458,1.56269134,119420.0,119410.0,0.1178051]
[1759412369761,1.20189134,119420.0,119410.0,0.1178051]
[1759412370255,0.083695,119430.0,119420.0,0.1181781]
[1759412370460,1.20188844,119430.0,119420.0,0.4789781]
[1759412370660,1.20188844,119430.0,119420.0,0.1181781]
[1759412371252,1.56268844,119430.0,119420.0,0.0133]
[1759412371456,0.0836981,119420.0,119410.0,0.02492]
[1759412371654,0.43713154,119420.0,119410.0,0.4786051]
[1759412372761,0.43713154,119420.0,119410.0,0.1178051]
[1759412373460,0.43713154,119420.0,119410.0,0.1238051]
[1759412373657,0.43713154,119420.0,119410.0,0.4846051]
[1759412373857,1.20193154,119420.0,119410.0,0.4906051]
[1759412374751,0.0836981,119420.0,119410.0,0.4906051]
[1759412374958,0.43712984,119430.0,119420.0,0.1181755]
[1759412375158,1.01276984,119430.0,119420.0,0.1181755]
[1759412375362,1.01276984,119430.0,119420.0,0.03448]
[1759412375558,1.37356984,119430.0,119420.0,0.0133]
[1759412377265,1.37356984,119430.0,119420.0,0.0193]
[1759412378362,1.37356984,119430.0,119420.0,0.006]
[1759412378555,1.77356984,119430.0,119420.0,0.006]
[1759412378758,1.77356984,119430.0,119410.0,0.01292]
[1759412378759,0.083705,119410.0,119400.0,0.07304333]
[1759412378960,1.54913047,119410.0,119400.0,0.01292]
[1759412379866,1.54913047,119410.0,119400.0,0.01992]
[1759412380065,1.54913047,119410.0,119400.0,0.007]
[1759412380465,0.0837121,119400.0,119390.0,0.01340106]
[1759412380654,0.79794554,119400.0,119390.0,0.01340106]
[1759412381761,0.79794554,119400.0,119390.0,0.02240106]
[1759412382864,0.79794554,119400.0,119390.0,0.02040106]
[1759412383368,1.20198554,119400.0,119390.0,0.04158106]
[1759412383564,0.43714554,119400.0,119390.0,0.04158106]
[1759412383862,1.63002824,119400.0,119390.0,0.04158106]
[1759412384064,1.63002824,119400.0,119390.0,0.00710106]
[1759412384569,1.63002824,119400.0,119390.0,0.02040106]
[1759412384966,0.0837191,119390.0,119370.0,0.07342333]
[1759412385166,1.56283954,119380.0,119370.0,0.0133]
[1759412385962,0.79804541,119380.0,119370.0,0.0133]
[1759412386168,1.56292541,119380.0,119370.0,0.0133]
[1759412386570,1.57120367,119380.0,119370.0,0.0223]